fUSD/lending_fUSD_20240518
["ID","MTS","AMOUNT","RATE_DAILY","PERIOD"]
[327374377,1716028238428,-500.0,0.00035616,9]
[327374378,1716028238438,-500.0,0.00035616,9]
[327374379,1716028238447,-500.0,0.00035616,9]
[327374380,1716028238456,-500.0,0.00035616,9]
[327374381,1716028238466,-500.0,0.00035616,9]
[327374382,1716028238475,-500.0,0.00035616,9]
[327374383,1716028238485,-500.0,0.00035616,9]
[327374384,1716028238494,-500.0,0.00035616,9]
[327374385,1716028238505,-500.0,0.00035616,9]
[327374386,1716028238519,-500.0,0.00035616,9]
[327374387,1716028238528,-2430.32,0.00035616,9]
[327374388,1716028238538,-500.0,0.00035616,9]
[327374389,1716028238548,-500.0,0.00035616,9]
[327374390,1716028238558,-974.37,0.00035616,9]
[327374391,1716028238567,-512.22923886,0.00035616,9]
[327374392,1716028238577,-500.0,0.00035616,9]
[327374393,1716028238588,-500.0,0.00035616,9]
[327374394,1716028238597,-500.0,0.00035616,9]
[327374395,1716028238606,-500.0,0.00035616,9]
[327374396,1716028238615,-500.0,0.00035616,9]
[327374397,1716028238625,-500.0,0.00035616,9]
[327374398,1716028238634,-3190.52,0.00035616,9]
[327374399,1716028238643,-500.0,0.00035616,9]
[327374400,1716028238652,-500.0,0.00035616,9]
[327374401,1716028238662,-500.0,0.00035616,9]
[327374402,1716028238671,-500.0,0.00035616,9]
[327374403,1716028238681,-500.0,0.00035616,9]
[327374404,1716028238691,-500.0,0.00035616,9]
[327374405,1716028238700,-500.0,0.00035616,9]
[327374406,1716028238709,-500.0,0.00035616,9]
[327374407,1716028238719,-500.0,0.00035616,9]
[327374408,1716028238728,-500.0,0.00035616,9]
[327374409,1716028238737,-78.59186497,0.00035616,9]
[327374410,1716028238774,-421.40813503,0.00035616,9]
[327374411,1716028238784,-500.0,0.00035616,9]
[327374412,1716028238793,-500.0,0.00035616,9]
[327374413,1716028238803,-500.0,0.00035616,9]
[327374414,1716028238813,-500.0,0.00035616,9]
[327374415,1716028238822,-500.0,0.00035616,9]
[327374416,1716028238831,-500.0,0.00035616,9]
[327374417,1716028238841,-500.0,0.00035616,9]
[327374419,1716028238850,-500.0,0.00035616,9]
[327374421,1716028238859,-500.0,0.00035616,9]
[327374423,1716028238868,-500.0,0.00035616,9]
[327374425,1716028238877,-500.0,0.00035616,9]
[327374427,1716028238887,-500.0,0.00035616,9]
[327374429,1716028238896,-500.0,0.00035616,9]
[327374431,1716028238905,-500.0,0.00035616,9]
[327374433,1716028238914,-500.0,0.00035616,9]
[327374435,1716028238922,-500.0,0.00035616,9]
[327374437,1716028238932,-500.0,0.00035616,9]
[327374439,1716028238941,-2895.82,0.00035616,9]
[327374441,1716028238950,-500.0,0.00035616,9]
[327374443,1716028238960,-500.0,0.00035616,9]
[327374445,1716028238969,-500.0,0.00035616,9]
[327374447,1716028238979,-500.0,0.00035616,9]
[327374449,1716028238988,-500.0,0.00035616,9]
[327374451,1716028238997,-500.0,0.00035616,9]
[327374453,1716028239007,-2596.48,0.00035616,9]
[327374455,1716028239016,-500.0,0.00035616,9]
[327374457,1716028239026,-500.0,0.00035616,9]
[327374459,1716028239035,-500.0,0.00035616,9]
[327374461,1716028239045,-500.0,0.00035616,9]
[327374463,1716028239055,-500.0,0.00035616,9]
[327374465,1716028239064,-3486.23,0.00035616,9]
[327374467,1716028239074,-514.45854672,0.00035616,9]
[327374469,1716028239084,-500.0,0.00035616,9]
[327374471,1716028239094,-500.0,0.00035616,9]
[327374473,1716028239104,-500.0,0.00035616,9]
[327374475,1716028239114,-500.0,0.00035616,9]
[327374477,1716028239124,-500.0,0.00035616,9]
[327374479,1716028239135,-500.0,0.00035616,9]
[327374481,1716028239145,-500.0,0.00035616,9]
[327374482,1716028239155,-500.0,0.00035616,9]
[327374485,1716028239165,-500.0,0.00035616,9]
[327374487,1716028239176,-500.0,0.00035616,9]
[327374489,1716028239185,-500.0,0.00035616,9]
[327374491,1716028239195,-500.0,0.00035616,9]
[327374493,1716028239206,-2556.9,0.00035616,9]
[327374495,1716028239216,-539.63258044,0.00035616,9]
[327374497,1716028239228,-500.0,0.00035616,9]
[327374499,1716028239239,-500.0,0.00035616,9]
[327374501,1716028239249,-500.0,0.00035616,9]
[327374503,1716028239259,-500.0,0.00035616,9]
[327374505,1716028239270,-500.0,0.00035616,9]
[327374507,1716028239280,-500.0,0.00035616,9]
[327374509,1716028239290,-500.0,0.00035616,9]
[327374511,1716028239300,-580.94,0.00035616,9]
[327374513,1716028239311,-500.0,0.00035616,9]
[327374515,1716028239323,-500.0,0.00035616,9]
[327374517,1716028239333,-500.0,0.00035616,9]
[327374519,1716028239343,-500.0,0.00035616,9]
[327374520,1716028239353,-500.0,0.00035616,9]
[327374521,1716028239363,-500.0,0.00035616,9]
[327374522,1716028239374,-500.0,0.00035616,9]
[327374523,1716028239385,-500.0,0.00035616,9]
[327374524,1716028239396,-500.0,0.00035616,9]
[327374525,1716028239406,-500.0,0.00035616,9]
[327374526,1716028239416,-500.0,0.00035616,9]
[327374527,1716028239427,-500.0,0.00035616,9]
[327374528,1716028239437,-500.0,0.00035616,9]
[327374529,1716028239447,-500.0,0.00035616,9]
[327374530,1716028239457,-500.0,0.00035616,9]
[327374531,1716028239468,-500.0,0.00035616,9]
[327374533,1716028239478,-500.0,0.00035616,9]
[327374535,1716028239488,-511.88,0.00035616,9]
[327374537,1716028239498,-616.38,0.00035616,9]
[327374539,1716028239509,-500.0,0.00035616,9]
[327374540,1716028239520,-500.0,0.00035616,9]
[327374543,1716028239531,-500.0,0.00035616,9]
[327374544,1716028239540,-388.59228121,0.00035616,9]
[327374547,1716028239556,-111.40771879,0.00035616,9]
[327374549,1716028239566,-509.14891299,0.00035616,9]
[327374551,1716028239575,-500.0,0.00035616,9]
[327374553,1716028239586,-444.45547321,0.00035616,9]
[327374557,1716028239622,-55.54452679,0.00035616,9]
[327374559,1716028239633,-500.0,0.00035616,9]
[327374561,1716028239643,-500.0,0.00035616,9]
[327374563,1716028239652,-560.79,0.00035616,9]
[327374565,1716028239662,-621.87,0.00035616,9]
[327374567,1716028239672,-500.0,0.00035616,9]
[327374569,1716028239682,-404.11319115,0.00035616,9]
[327374572,1716028239694,-95.88680885,0.00035616,9]
[327374576,1716028239704,-500.0,0.00035616,9]
[327374579,1716028239714,-500.0,0.00035616,9]
[327374582,1716028239724,-506.10272194,0.00035616,2]
[327374585,1716028239735,-416.27297921,0.00035616,9]
[327374588,1716028239749,-83.72702079,0.00035616,9]
[327374591,1716028239759,-296.31184625,0.00035616,9]
[327374593,1716028239771,-203.68815375,0.00035616,9]
[327374595,1716028239782,-500.0,0.00035616,9]
[327374597,1716028239793,-500.0,0.00035616,9]
[327374599,1716028239803,-500.0,0.00035616,9]
[327374601,1716028239813,-314.00151864,0.00035616,9]
[327374645,1716028240212,-185.99848136,0.00035616,9]
[327374647,1716028240221,-500.0,0.00035616,9]
[327374649,1716028240231,-500.0,0.00035616,9]
[327374651,1716028240241,-500.0,0.00035616,9]
[327374653,1716028240251,-500.0,0.00035616,9]
[327374655,1716028240260,-500.0,0.00035616,9]
[327374657,1716028240270,-500.0,0.00035616,9]
[327374659,1716028240279,-500.0,0.00035616,9]
[327374661,1716028240288,-500.0,0.00035616,9]
[327374663,1716028240297,-500.0,0.00035616,9]
[327374665,1716028240306,-545.20455152,0.00035616,9]
[327374667,1716028240315,-156.8,0.00035616,9]
[327374669,1716028240325,-500.0,0.00035616,9]
[327374671,1716028240334,-500.0,0.00035616,9]
[327374673,1716028240343,-500.0,0.00035616,9]
[327374675,1716028240352,-500.0,0.00035616,9]
[327374677,1716028240362,-500.0,0.00035616,9]
[327374679,1716028240370,-500.0,0.00035616,9]
[327374681,1716028240380,-500.0,0.00035616,9]
[327374683,1716028240390,-500.0,0.00035616,9]
[327374685,1716028240399,-500.0,0.00035616,9]
[327374687,1716028240409,-500.0,0.00035616,9]
[327374689,1716028240418,-500.0,0.00035616,9]
[327374691,1716028240428,-500.0,0.00035616,9]
[327374693,1716028240438,-500.0,0.00035616,9]
[327374695,1716028240448,-500.0,0.00035616,9]
[327374697,1716028240458,-500.0,0.00035616,9]
[327374699,1716028240467,-500.0,0.00035616,9]
[327374701,1716028240476,-500.0,0.00035616,9]
[327374703,1716028240489,-500.0,0.00035616,9]
[327374705,1716028240499,-500.0,0.00035616,9]
[327374707,1716028240510,-265.26689956,0.00035616,9]
[327374708,1716028240521,-500.0,0.00035616,9]
[327374710,1716028240530,-496.52850392,0.00035616,9]
[327374713,1716028240541,-500.0,0.00035616,9]
[327374715,1716028240551,-2981.37,0.00035616,9]
[327374717,1716028240562,-610.50058739,0.00035616,9]
[327374719,1716028240572,-500.0,0.00035616,9]
[327374721,1716028240582,-500.0,0.00035616,9]
[327374723,1716028240594,-500.0,0.00035616,9]
[327374724,1716028240603,-500.0,0.00035616,9]
[327374727,1716028240613,-500.0,0.00035616,9]
[327374728,1716028240622,-500.0,0.00035616,9]
[327374730,1716028240631,-500.0,0.00035616,9]
[327374733,1716028240641,-500.0,0.00035616,9]
[327374734,1716028240650,-500.0,0.00035616,9]
[327374736,1716028240660,-500.0,0.00035616,9]
[327374738,1716028240669,-500.0,0.00035616,9]
[327374740,1716028240679,-500.0,0.00035616,9]
[327374742,1716028240689,-499.63494739,0.00035616,9]
[327374744,1716028240699,-500.0,0.00035616,9]
[327374747,1716028240708,-500.0,0.00035616,9]
[327374748,1716028240718,-500.0,0.00035616,9]
[327374751,1716028240729,-4286.94,0.00035616,9]
[327374753,1716028240739,-769.39,0.00035616,9]
[327374754,1716028240748,-500.0,0.00035616,9]
[327374756,1716028240758,-500.0,0.00035616,9]
[327374759,1716028240768,-500.0,0.00035616,9]
[327374761,1716028240778,-500.0,0.00035616,9]
[327374763,1716028240787,-500.62213931,0.00035616,9]
[327374764,1716028240796,-500.0,0.00035616,9]
[327374767,1716028240807,-707.79,0.00035616,9]
[327374769,1716028240817,-1273.23,0.00035616,9]
[327374770,1716028240826,-500.0,0.00035616,9]
[327374773,1716028240836,-526.354689,0.00035616,9]
[327374775,1716028240845,-500.0,0.00035616,9]
[327374776,1716028240855,-500.0,0.00035616,9]
[327374778,1716028240864,-500.0,0.00035616,9]
[327374780,1716028240873,-500.0,0.00035616,9]
[327374782,1716028240882,-500.0,0.00035616,9]
[327374784,1716028240891,-500.0,0.00035616,9]
[327374786,1716028240900,-6139.62,0.00035616,9]
[327374788,1716028240910,-500.0,0.00035616,9]
[327374790,1716028240919,-500.0,0.00035616,9]
[327374792,1716028240928,-500.0,0.00035616,9]
[327374794,1716028240937,-3372.38,0.00035616,9]
[327374796,1716028240947,-500.0,0.00035616,9]
[327374798,1716028240956,-500.0,0.00035616,9]
[327374800,1716028240965,-2727.14,0.00035616,9]
[327374802,1716028240974,-610.67,0.00035616,9]
[327374804,1716028240985,-500.0,0.00035616,9]
[327374806,1716028240995,-500.0,0.00035616,9]
[327374808,1716028241005,-500.0,0.00035616,9]
[327374810,1716028241014,-2018.86,0.00035616,9]
[327374812,1716028241024,-500.0,0.00035616,9]
[327374814,1716028241033,-500.0,0.00035616,9]
[327374816,1716028241043,-500.0,0.00035616,9]
[327374818,1716028241052,-1064.87,0.00035616,9]
[327374820,1716028241061,-1751.6,0.00035616,9]
[327374822,1716028241070,-500.0,0.00035616,9]
[327374824,1716028241080,-241.178917,0.00035616,9]
[327374826,1716028241089,-9617.9,0.00035616,9]
[327374828,1716028241099,-692.77,0.00035616,9]
[327374830,1716028241108,-500.0,0.00035616,9]
[327374832,1716028241118,-513.28,0.00035616,9]
[327374834,1716028241127,-742.95,0.00035616,9]
[327374836,1716028241136,-500.0,0.00035616,7]
[327374839,1716028241146,-500.0,0.00035616,9]
[327374841,1716028241156,-500.0,0.00035616,9]
[327374842,1716028241165,-744.24,0.00035616,9]
[327374844,1716028241174,-500.0,0.00035616,9]
[327374846,1716028241184,-500.0,0.00035616,9]
[327374849,1716028241193,-500.0,0.00035616,9]
[327374850,1716028241202,-511.11256447,0.00035616,9]
[327374852,1716028241211,-500.0,0.00035616,9]
[327374854,1716028241220,-552.14479975,0.00035616,9]
[327374856,1716028241230,-560.43,0.00035616,9]
[327374858,1716028241239,-584.2,0.00035616,9]
[327374860,1716028241248,-500.0,0.00035616,9]
[327374862,1716028241257,-1164.85,0.00035616,9]
[327374864,1716028241266,-509.10588385,0.00035616,9]
[327374866,1716028241276,-500.0,0.00035616,9]
[327374868,1716028241286,-682.22,0.00035616,9]
[327374870,1716028241295,-500.0,0.00035616,9]
[327374872,1716028241304,-500.0,0.00035616,9]
[327374874,1716028241314,-2972.63,0.00035616,9]
[327374876,1716028241323,-500.0,0.00035616,9]
[327374878,1716028241332,-1502.14,0.00035616,9]
[327374880,1716028241341,-8653.71,0.00035616,9]
[327374882,1716028241350,-500.0,0.00035616,9]
[327374884,1716028241359,-500.0,0.00035616,9]
[327374886,1716028241369,-500.0,0.00035616,9]
[327374888,1716028241379,-500.0,0.00035616,9]
[327374890,1716028241388,-1060.73,0.00035616,9]
[327374892,1716028241397,-500.0,0.00035616,9]
[327374894,1716028241405,-2466.87,0.00035616,9]
[327374896,1716028241418,-4741.66,0.00035616,9]
[327374898,1716028241432,-685.99,0.00035616,9]
[327374900,1716028241448,-500.0,0.00035616,9]
[327374902,1716028241458,-500.0,0.00035616,9]
[327374904,1716028241467,-500.0,0.00035616,9]
[327374906,1716028241475,-500.0,0.00035616,9]
[327374908,1716028241487,-677.37,0.00035616,9]
[327374910,1716028241496,-500.0,0.00035616,9]
[327374912,1716028241510,-502.0105644,0.00035616,9]
[327374914,1716028241519,-508.82350771,0.00035616,9]
[327374916,1716028241529,-500.0,0.00035616,9]
[327374918,1716028241538,-8143.51,0.00035616,9]
[327374920,1716028241547,-500.0,0.00035616,9]
[327374922,1716028241558,-593.37,0.00035616,9]
[327374924,1716028241567,-762.84,0.00035616,9]
[327374926,1716028241576,-500.0,0.00035616,9]
[327374928,1716028241588,-3062.15,0.00035616,9]
[327374930,1716028241598,-976.37,0.00035616,9]
[327374932,1716028241607,-500.0,0.00035616,9]
[327374934,1716028241616,-500.0,0.00035616,9]
[327374936,1716028241626,-730.78,0.00035616,9]
[327374938,1716028241635,-193.08751785,0.00035616,9]
[327374940,1716028241644,-8178.18,0.00035616,9]
[327374942,1716028241653,-500.0,0.00035616,9]
[327374944,1716028241662,-500.0,0.00035616,9]
[327374946,1716028241671,-500.0,0.00035616,9]
[327374948,1716028241681,-645.19,0.00035616,9]
[327374950,1716028241691,-500.0,0.00035616,9]
[327374952,1716028241700,-500.0,0.00035616,9]
[327374954,1716028241710,-694.27,0.00035616,9]
[327374956,1716028241719,-500.0,0.00035616,9]
[327374959,1716028241729,-463.50503321,0.00035616,9]
[327374961,1716028241738,-500.0,0.00035616,9]
[327374963,1716028241747,-500.0,0.00035616,9]
[327374964,1716028241756,-500.0,0.00035616,9]
[327374966,1716028241765,-500.0,0.00035616,9]
[327374968,1716028241775,-500.0,0.00035616,9]
[327374971,1716028241784,-500.0,0.00035616,9]
[327374973,1716028241794,-506.99140549,0.00035616,9]
[327374975,1716028241803,-630.7,0.00035616,9]
[327374977,1716028241812,-500.0,0.00035616,9]
[327374979,1716028241822,-500.0,0.00035616,9]
[327374981,1716028241831,-509.59941419,0.00035616,9]
[327374983,1716028241840,-874.9,0.00035616,9]
[327374985,1716028241850,-500.0,0.00035616,9]
[327374987,1716028241861,-500.0,0.00035616,9]
[327374989,1716028241871,-500.0,0.00035616,9]
[327374991,1716028241880,-500.0,0.00035616,9]
[327374993,1716028241890,-500.0,0.00035616,9]
[327374995,1716028241900,-2041.74,0.00035616,9]
[327374997,1716028241909,-500.0,0.00035616,9]
[327374999,1716028241919,-500.0,0.00035616,9]
[327375001,1716028241929,-1886.41,0.00035616,9]
[327375003,1716028241938,-500.0,0.00035616,9]
[327375005,1716028241948,-500.0,0.00035616,9]
[327375007,1716028241958,-500.0,0.00035616,9]
[327375009,1716028241967,-506.38519025,0.00035616,9]
[327375010,1716028241977,-500.0,0.00035616,9]
[327375011,1716028241988,-500.0,0.00035616,9]
[327375012,1716028241998,-500.0,0.00035616,9]
[327375013,1716028242007,-577.02973015,0.00035616,9]
[327375014,1716028242017,-2325.91,0.00035616,9]
[327375015,1716028242026,-500.0,0.00035616,9]
[327375016,1716028242036,-500.0,0.00035616,9]
[327375017,1716028242045,-500.0,0.00035616,9]
[327375018,1716028242055,-610.76,0.00035616,9]
[327375020,1716028242064,-939.91,0.00035616,9]
[327375022,1716028242074,-403.29,0.00035616,9]
[327375024,1716028242083,-500.0,0.00035616,9]
[327375026,1716028242093,-500.0,0.00035616,9]
[327375028,1716028242102,-507.44201454,0.00035616,9]
[327375030,1716028242111,-876.72,0.00035616,9]
[327375032,1716028242121,-630.24,0.00035616,9]
[327375034,1716028242130,-500.0,0.00035616,9]
[327375036,1716028242139,-500.0,0.00035616,9]
[327375038,1716028242149,-500.0,0.00035616,9]
[327375040,1716028242159,-500.0,0.00035616,9]
[327375042,1716028242168,-500.0,0.00035616,9]
[327375044,1716028242178,-500.0,0.00035616,9]
[327375046,1716028242187,-589.26,0.00035616,9]
[327375048,1716028242196,-500.0,0.00035616,9]
[327375050,1716028242206,-1224.24,0.00035616,9]
[327375052,1716028242215,-652.79,0.00035616,9]
[327375054,1716028242224,-500.0,0.00035616,9]
[327375056,1716028242234,-3719.28,0.00035616,9]
[327375058,1716028242243,-503.37722404,0.00035616,9]
[327375060,1716028242253,-505.10912915,0.00035616,9]
[327375062,1716028242262,-500.0,0.00035616,9]
[327375064,1716028242271,-500.0,0.00035616,9]
[327375066,1716028242281,-500.0,0.00035616,9]
[327375068,1716028242290,-1724.33,0.00035616,9]
[327375070,1716028242300,-500.0,0.00035616,9]
[327375073,1716028242309,-604.2,0.00035616,9]
[327375075,1716028242318,-1288.04,0.00035616,9]
[327375077,1716028242328,-500.0,0.00035616,9]
[327375079,1716028242337,-500.0,0.00035616,9]
[327375081,1716028242346,-500.0,0.00035616,9]
[327375083,1716028242356,-500.0,0.00035616,9]
[327375085,1716028242365,-500.0,0.00035616,9]
[327375087,1716028242374,-667.15,0.00035616,9]
[327375089,1716028242384,-500.0,0.00035616,9]
[327375091,1716028242394,-500.0,0.00035616,9]
[327375093,1716028242403,-500.0,0.00035616,9]
[327375095,1716028242415,-500.0,0.00035616,9]
[327375097,1716028242424,-500.0,0.00035616,9]
[327375099,1716028242434,-579.58,0.00035616,9]
[327375101,1716028242443,-500.0,0.00035616,9]
[327375103,1716028242453,-500.0,0.00035616,9]
[327375105,1716028242463,-500.0,0.00035616,9]
[327375107,1716028242472,-679.88,0.00035616,9]
[327375109,1716028242482,-691.22,0.00035616,9]
[327375111,1716028242491,-500.0,0.00035616,9]
[327375113,1716028242501,-500.0,0.00035616,9]
[327375115,1716028242512,-500.0,0.00035616,9]
[327375118,1716028242523,-500.0,0.00035616,9]
[327375120,1716028242532,-689.7,0.00035616,9]
[327375122,1716028242542,-3190.6,0.00035616,9]
[327375124,1716028242551,-868.93,0.00035616,9]
[327375125,1716028242562,-500.0,0.00035616,9]
[327375126,1716028242571,-601.86,0.00035616,9]
[327375128,1716028242581,-500.0,0.00035616,9]
[327375131,1716028242592,-951.94,0.00035616,9]
[327375133,1716028242603,-951.94,0.00035616,9]
[327375135,1716028242612,-951.94,0.00035616,9]
[327375137,1716028242622,-951.94,0.00035616,9]
[327375140,1716028242631,-1297.1,0.00035616,9]
[327375143,1716028242641,-500.0,0.00035616,9]
[327375146,1716028242650,-538.69,0.00035616,9]
[327375149,1716028242659,-500.0,0.00035616,9]
[327375152,1716028242669,-627.35,0.00035616,9]
[327375155,1716028242678,-500.0,0.00035616,9]
[327375158,1716028242688,-774.19,0.00035616,9]
[327375161,1716028242698,-500.0,0.00035616,9]
[327375164,1716028242708,-500.0,0.00035616,9]
[327375167,1716028242717,-500.0,0.00035616,9]
[327375170,1716028242727,-500.0,0.00035616,9]
[327375172,1716028242737,-664.02,0.00035616,9]
[327375174,1716028242746,-507.79113947,0.00035616,9]
[327375176,1716028242756,-500.0,0.00035616,9]
[327375178,1716028242766,-1844.6,0.00035616,9]
[327375180,1716028242775,-500.0,0.00035616,9]
[327375183,1716028242785,-500.0,0.00035616,9]
[327375185,1716028242794,-500.0,0.00035616,9]
[327375187,1716028242804,-500.0,0.00035616,9]
[327375189,1716028242814,-2010.6,0.00035616,9]
[327375191,1716028242823,-500.0,0.00035616,9]
[327375193,1716028242834,-500.0,0.00035616,9]
[327375195,1716028242843,-500.0,0.00035616,9]
[327375197,1716028242853,-500.0,0.00035616,9]
[327375199,1716028242862,-250.65837087,0.00035616,9]
[327375201,1716028242872,-500.0,0.00035616,9]
[327375203,1716028242881,-500.0,0.00035616,9]
[327375205,1716028242890,-500.0,0.00035616,9]
[327375207,1716028242900,-500.0,0.00035616,9]
[327375209,1716028242909,-2534.78,0.00035616,9]
[327375211,1716028242919,-757.19,0.00035616,9]
[327375213,1716028242928,-1881.91,0.00035616,9]
[327375215,1716028242938,-500.0,0.00035616,9]
[327375217,1716028242948,-500.0,0.00035616,9]
[327375220,1716028242957,-500.0,0.00035616,9]
[327375223,1716028242967,-500.0,0.00035616,9]
[327375226,1716028242976,-1097.44,0.00035616,9]
[327375228,1716028242987,-500.0,0.00035616,9]
[327375232,1716028242996,-679.77,0.00035616,9]
[327375235,1716028243006,-509.85502185,0.00035616,9]
[327375238,1716028243015,-1162.29,0.00035616,9]
[327375240,1716028243024,-500.0,0.00035616,9]
[327375242,1716028243034,-500.0,0.00035616,9]
[327375244,1716028243044,-500.0,0.00035616,9]
[327375248,1716028243054,-500.0,0.00035616,9]
[327375251,1716028243063,-500.0,0.00035616,9]
[327375254,1716028243073,-827.2,0.00035616,9]
[327375257,1716028243082,-500.0,0.00035616,9]
[327375260,1716028243092,-500.0,0.00035616,9]
[327375262,1716028243101,-500.0,0.00035616,9]
[327375264,1716028243111,-909.67,0.00035616,9]
[327375266,1716028243120,-1186.94,0.00035616,9]
[327375268,1716028243130,-500.0,0.00035616,9]
[327375271,1716028243139,-746.96,0.00035616,9]
[327375275,1716028243150,-500.0,0.00035616,9]
[327375277,1716028243160,-792.07,0.00035616,9]
[327375279,1716028243169,-500.0,0.00035616,9]
[327375282,1716028243179,-509.59374962,0.00035616,9]
[327375284,1716028243188,-1111.77,0.00035616,9]
[327375286,1716028243198,-500.0,0.00035616,9]
[327375288,1716028243207,-500.0,0.00035616,9]
[327375290,1716028243217,-846.79,0.00035616,9]
[327375291,1716028243226,-955.59,0.00035616,9]
[327375292,1716028243236,-500.0,0.00035616,9]
[327375293,1716028243246,-853.23,0.00035616,9]
[327375295,1716028243255,-941.63,0.00035616,9]
[327375297,1716028243265,-500.0,0.00035616,9]
[327375299,1716028243274,-500.0,0.00035616,9]
[327375301,1716028243283,-500.0,0.00035616,9]
[327375303,1716028243293,-500.0,0.00035616,9]
[327375305,1716028243304,-998.74,0.00035616,9]
[327375307,1716028243313,-500.0,0.00035616,9]
[327375309,1716028243323,-500.0,0.00035616,9]
[327375311,1716028243332,-534.96,0.00035616,9]
[327375312,1716028243341,-507.79744307,0.00035616,9]
[327375313,1716028243351,-500.0,0.00035616,9]
[327375314,1716028243360,-504.19862081,0.00035616,9]
[327375315,1716028243369,-551.91,0.00035616,9]
[327375316,1716028243378,-687.72,0.00035616,9]
[327375317,1716028243388,-500.0,0.00035616,9]
[327375318,1716028243397,-511.01615828,0.00035616,9]
[327375319,1716028243407,-500.0,0.00035616,9]
[327375320,1716028243417,-500.0,0.00035616,9]
[327375321,1716028243427,-500.0,0.00035616,9]
[327375322,1716028243436,-500.0,0.00035616,9]
[327375323,1716028243446,-500.0,0.00035616,9]
[327375324,1716028243456,-574.13,0.00035616,9]
[327375325,1716028243465,-500.0,0.00035616,9]
[327375326,1716028243475,-500.0,0.00035616,9]
[327375327,1716028243485,-617.42,0.00035616,9]
[327375328,1716028243494,-500.0,0.00035616,9]
[327375329,1716028243504,-500.0,0.00035616,9]
[327375330,1716028243518,-500.0,0.00035616,9]
[327375331,1716028243527,-500.0,0.00035616,9]
[327375332,1716028243537,-859.9,0.00035616,9]
[327375333,1716028243547,-500.0,0.00035616,9]
[327375334,1716028243559,-500.0,0.00035616,9]
[327375335,1716028243570,-687.14,0.00035616,9]
[327375336,1716028243581,-1011.63247684,0.00035616,9]
[327375337,1716028243592,-500.0,0.00035616,9]
[327375338,1716028243603,-500.0,0.00035616,9]
[327375339,1716028243612,-500.0,0.00035616,9]
[327375340,1716028243622,-500.0,0.00035616,9]
[327375341,1716028243631,-500.0,0.00035616,9]
[327375342,1716028243642,-500.0,0.00035616,9]
[327375343,1716028243651,-1047.56,0.00035616,9]
[327375344,1716028243661,-3747.21,0.00035616,9]
[327375345,1716028243671,-543.16,0.00035616,9]
[327375346,1716028243680,-1569.18,0.00035616,9]
[327375347,1716028243690,-832.05,0.00035616,9]
[327375348,1716028243700,-3974.37,0.00035616,9]
[327375349,1716028243710,-3455.46,0.00035616,9]
[327375350,1716028243720,-500.0,0.00035616,9]
[327375351,1716028243730,-500.0,0.00035616,9]
[327375352,1716028243740,-500.0,0.00035616,9]